bitfinex/quotes_ETHUSD_20250130
["timestamp","ask_amount","ask_price","bid_price","bid_amount"]
[1738261773327,3.06608,3261.5,3260.9,3.61657]
[1738261774646,3.06608,3261.5,3260.8,0.7742]
[1738261774834,3.06634,3261.3,3260.8,0.7742]
[1738261775558,3.06607,3261.5,3260.8,0.7742]
[1738261775765,3.06607,3261.5,3260.8,3.84085]
[1738261776141,3.06607,3261.5,3260.9,3.06663]
[1738261776347,3.06571,3261.9,3261.0,3.64712416]
[1738261776665,3.06571,3261.9,3261.2,0.7864]
[1738261776984,3.06554,3262.1,3261.3,3.06625]
[1738261777180,3.06562,3262.0,3261.3,3.06625]
[1738261777941,3.06562,3262.0,3261.4,3.06616]
[1738261778474,3.06535,3262.3,3261.4,3.06616]
[1738261778659,3.06518,3262.5,3261.7,3.06581]
[1738261778973,3.06501,3262.7,3262.0,3.06558]
[1738261779130,3.06501,3262.7,3262.1,0.785]
[1738261779330,3.06516,3262.5,3262.1,0.785]
[1738261779727,3.06474,3263.0,3262.2,3.06541]
[1738261779927,3.06476,3262.9,3262.2,3.06541]
[1738261780134,3.06476,3262.9,3262.1,0.785]
[1738261780462,3.06449,3263.2,3262.5,3.06511]
[1738261780644,3.06467,3263.0,3262.4,0.55]
[1738261781232,3.61957366,3263.5,3261.5,3.06598]
[1738261781233,3.06522,3262.5,3261.5,3.06598]
[1738261781435,0.7919,3262.8,3260.9,0.384083]
[1738261781436,3.0655,3262.2,3261.6,0.7918]
[1738261782041,3.06551,3262.1,3261.6,0.7918]
[1738261782416,3.06525,3262.4,3261.6,0.7918]
[1738261782753,3.06548,3262.2,3261.6,0.7918]
[1738261784040,3.06525,3262.4,3261.7,0.55]
[1738261784287,3.065,3262.7,3261.9,3.06567]
[1738261784438,3.065,3262.7,3262.0,0.8266]
[1738261784639,3.06523,3262.4,3262.0,0.8266]
[1738261784846,3.09599018,3262.3,3262.0,0.8266]
[1738261785391,3.06521,3262.5,3262.0,0.8266]
[1738261785738,3.06526,3262.4,3262.0,0.8266]
[1738261785938,3.09561018,3262.7,3262.0,0.8266]
[1738261786222,3.47009274,3263.5,3262.1,0.58065505]
[1738261786423,3.06476,3262.9,3262.2,3.06534]
[1738261786624,0.03064018,3262.8,3262.1,0.55]
[1738261786783,3.09555018,3262.8,3262.1,3.6155]
[1738261787322,3.06502,3262.7,3262.0,3.89215]
[1738261787892,3.09570018,3262.6,3262.0,3.89215]
[1738261788486,0.03064018,3262.6,3262.0,3.89215]
[1738261788820,3.06491,3262.8,3262.0,0.8266]
[1738261789137,3.0651,3262.6,3262.0,0.8266]
[1738261789945,3.06469,3263.0,3262.4,0.7969]
[1738261790145,3.06494,3262.8,3262.4,0.7969]
[1738261790352,3.06508,3262.6,3262.4,0.7969]
[1738261790654,3.7678,3263.4,3262.4,0.7969]
[1738261790655,3.0647,3263.0,3262.4,0.7969]
[1738261790857,3.7678,3263.4,3262.5,0.55]
[1738261790858,3.06452,3263.2,3262.5,0.55]
[1738261791027,3.06438,3263.3,3262.6,3.06498]
[1738261791405,3.0643,3263.4,3262.7,0.55]
[1738261791639,3.06415,3263.6,3262.9,0.55]
[1738261791949,3.06404,3263.7,3263.1,0.55]
[1738261792262,3.0,3263.7,3262.8,0.7932]
[1738261792456,3.06432,3263.4,3262.8,0.7932]
[1738261792608,6.12869,3263.4,3262.9,0.55]
[1738261792946,3.06432,3263.4,3262.9,0.55]
[1738261793820,3.06392,3263.8,3262.9,0.55]
[1738261794059,3.06378,3264.0,3263.2,3.0644]
[1738261794254,3.06404,3263.7,3263.1,0.55]
[1738261794412,3.06404,3263.7,3263.1,3.61455]
[1738261794608,3.06404,3263.7,3263.1,0.55]
[1738261795257,3.06384,3263.9,3263.2,3.06446]
[1738261795422,3.06384,3263.9,3263.1,3.61456]
[1738261795753,3.06399,3263.8,3263.1,3.61456]
[1738261795965,3.06384,3263.9,3263.3,0.55]
[1738261796249,0.03064018,3263.8,3263.2,0.7781]
[1738261796411,3.06387,3263.9,3263.3,0.55]
[1738261798639,3.06357,3264.2,3263.7,0.55]
[1738261798965,3.06327,3264.5,3263.9,0.55]
[1738261799131,3.06335,3264.4,3263.9,1.3791]
[1738261799625,3.06305,3264.8,3264.1,0.55]
[1738261799953,3.06307,3264.7,3264.1,0.55]
[1738261800354,0.7533,3265.0,3264.1,0.55]
[1738261800510,3.06306,3264.8,3264.3,0.55]
[1738261800707,3.06312,3264.7,3264.3,0.55]
[1738261801107,3.06306,3264.8,3264.3,0.55]
[1738261801319,3.06281,3265.0,3264.3,3.61342]
[1738261801727,3.06263,3265.2,3264.5,0.55]
[1738261801928,3.06271,3265.1,3264.6,0.766]
[1738261802321,3.06279,3265.0,3264.6,0.766]
[1738261803265,3.06271,3265.1,3264.6,0.766]
[1738261803756,3.06257,3265.3,3264.7,0.55]
[1738261803963,3.06277,3265.1,3264.6,1.203933]
[1738261804163,3.06349,3264.3,3263.8,0.8206]
[1738261804316,3.06355,3264.2,3263.8,0.8206]
[1738261804520,3.06371,3264.1,3263.8,0.8206]
[1738261804962,3.06351,3264.3,3263.8,0.8206]
[1738261806237,3.06362,3264.2,3263.8,0.8206]
[1738261807049,3.06369,3264.1,3263.8,0.8206]
[1738261807256,3.06381,3263.9,3263.8,0.8206]
[1738261807565,3.06381,3263.9,3263.5,0.8025]
[1738261807734,3.06381,3263.9,3263.6,0.55]
[1738261807935,3.06365,3264.1,3263.6,0.55]
[1738261808266,3.06372,3264.0,3263.6,0.55]
[1738261808473,3.06372,3264.0,3263.6,0.54191968]
[1738261808763,3.06365,3264.1,3263.6,0.54191968]
[1738261808764,3.06389,3263.9,3263.6,0.54191968]
[1738261809222,3.06348,3264.3,3263.6,3.60595968]
[1738261809424,6.127,3264.3,3263.6,3.60595968]
[1738261809620,3.06362,3264.2,3263.6,3.60595968]
[1738261810180,3.06348,3264.3,3263.6,3.60595968]
[1738261810534,3.06363,3264.1,3263.7,0.55]
[1738261810867,3.06374,3264.0,3263.6,0.55]
[1738261811280,3.06321,3264.6,3263.5,0.8025]
[1738261811281,0.03064018,3263.9,3263.5,0.8025]
[1738261811450,3.06397,3263.8,3263.5,0.8025]
[1738261811780,3.06397,3263.8,3262.9,3.60011157]
[1738261811781,0.802,3263.8,3262.9,0.60011157]
[1738261812160,3.06435,3263.4,3262.8,3.06483]
[1738261812366,3.06435,3263.4,3262.9,0.55]
[1738261812763,3.06459,3263.1,3262.7,0.7604]
[1738261812944,3.06453,3263.2,3262.7,0.7604]
[1738261813150,0.03064018,3263.6,3262.7,0.7604]
[1738261813332,3.06463,3263.1,3262.7,0.7604]
[1738261814054,3.06468,3263.0,3262.7,0.7604]
[1738261814380,3.06481,3262.9,3262.7,0.7604]
[1738261815160,6.12928,3263.1,3262.7,0.7604]
[1738261815349,3.06472,3263.0,3262.7,0.7604]
[1738261815934,3.06442,3263.3,3262.8,0.55]
[1738261816787,6.12888,3263.3,3262.8,0.55]
[1738261817480,3.06454,3263.2,3262.8,0.55]
[1738261818209,3.06442,3263.3,3262.8,0.55]
[1738261818415,3.06481,3262.9,3262.7,0.7604]
[1738261819015,6.12922,3263.1,3262.7,0.7604]
[1738261819184,3.06457,3263.1,3262.7,0.7604]
[1738261819599,3.82544,3263.0,3262.5,0.55]
[1738261819765,3.06473,3263.0,3262.3,3.61532]
[1738261820005,3.06482,3262.9,3262.3,4.365771]
[1738261820171,3.065,3262.7,3262.2,0.8237]
[1738261820519,0.03064018,3262.6,3262.2,0.8237]
[1738261820666,3.06523,3262.4,3262.2,0.8237]
[1738261820871,0.03064018,3262.6,3262.3,0.55]
[1738261821072,3.06504,3262.6,3262.3,0.55]
[1738261821269,3.06543,3262.2,3261.8,0.8194]
[1738261822302,3.06569,3261.9,3261.8,0.8194]
[1738261822506,3.06575,3261.9,3261.3,0.8201]
[1738261822689,3.06575,3261.9,3261.3,3.88628]
[1738261823604,3.06575,3261.9,3261.4,0.55]
[1738261823920,3.06575,3261.9,3261.4,3.61616]
[1738261824617,3.06575,3261.9,3261.4,4.366419]
[1738261824790,6.13115,3262.1,3261.4,4.366419]
[1738261825113,3.06586,3261.8,3261.4,0.55]
[1738261825977,3.06579,3261.8,3261.4,0.55]
[1738261826174,3.06605,3261.6,3261.3,0.8201]
[1738261826486,3.0661,3261.5,3261.0,0.8329]
[1738261826687,3.0663,3261.3,3261.0,0.8329]
[1738261826889,3.0661,3261.5,3261.0,0.8329]
[1738261827276,6.13226,3261.5,3260.9,0.55]
[1738261827541,3.0661,3261.5,3260.9,0.55]
[1738261827744,3.0661,3261.5,3260.9,0.437797]
[1738261827950,3.06553,3262.1,3261.5,0.55]
[1738261828442,3.06572,3261.9,3261.3,0.55]
[1738261828791,3.06562,3262.0,3261.3,3.61617]
[1738261829193,3.06573,3261.9,3261.3,3.61617]
[1738261829424,3.06603,3261.6,3261.2,0.8315]
[1738261829639,3.06583,3261.8,3261.2,0.8315]
[1738261829941,6.13131,3262.0,3261.3,0.55]
[1738261830343,3.06564,3262.0,3261.3,0.55]
[1738261830813,3.06544,3262.2,3261.3,0.55]
[1738261831134,3.06544,3262.2,3261.5,3.616]
[1738261831350,6.13094,3262.2,3261.5,0.55]
[1738261831692,3.06553,3262.1,3261.5,0.55]
[1738261832149,3.06569,3262.0,3261.3,3.61625]
[1738261832448,3.06569,3262.0,3261.3,4.367657]
[1738261832642,3.06569,3262.0,3261.3,1.301407]
[1738261832798,3.06579,3261.8,3261.3,0.55]
[1738261834840,3.06546,3262.2,3261.5,3.61598]
[1738261835049,3.06556,3262.1,3261.5,0.55]
[1738261835401,3.06556,3262.1,3261.5,4.367157]
[1738261835910,3.06535,3262.3,3261.7,0.55]
[1738261836109,3.06535,3262.3,3261.9,0.55]
[1738261836560,3.06556,3262.1,3261.9,0.55]
[1738261836725,3.06535,3262.3,3261.9,0.55]
[1738261836922,3.06541,3262.2,3261.9,0.55]
[1738261838020,3.06535,3262.3,3261.9,0.55]
[1738261838806,3.06516,3262.5,3261.9,0.55]
[1738261838962,3.06533,3262.3,3261.9,0.55]
[1738261839529,0.7966,3262.6,3261.9,0.55]
[1738261839530,3.06504,3262.6,3261.9,3.61568]
[1738261839859,3.06436,3263.4,3262.7,0.8047]
[1738261840328,2.85967366,3263.8,3262.8,0.55]
[1738261840547,0.40430034,3264.1,3263.1,0.55]
[1738261840548,0.8165,3263.9,3263.1,0.55]
[1738261840861,3.88003,3264.3,3263.5,3.06414]
[1738261841029,3.06369,3264.1,3263.4,3.06422]
[1738261841228,3.06369,3264.1,3263.5,0.914486]
[1738261841446,3.06373,3264.0,3263.5,0.914486]
[1738261841634,3.06373,3264.0,3263.5,0.55]
[1738261842322,3.06373,3264.0,3263.4,0.55]
[1738261842550,3.06361,3264.2,3263.4,3.61427]
[1738261842752,3.06361,3264.2,3263.6,0.55]
[1738261842966,3.06359,3264.2,3263.7,0.7617]
[1738261845250,3.06335,3264.4,3263.7,0.7617]
[1738261845251,3.06335,3264.4,3263.8,0.55]
[1738261845957,3.06345,3264.3,3263.8,0.55]
[1738261846163,3.06355,3264.2,3263.7,0.7617]
[1738261846543,3.0637,3264.1,3263.7,0.7617]
[1738261846949,3.06355,3264.2,3263.7,0.7617]
[1738261847149,3.06364,3264.1,3263.7,0.7617]
[1738261848178,3.06364,3264.1,3263.7,0.6617]
[1738261848574,3.06344,3264.3,3263.8,0.55]
[1738261848788,3.06427085,3264.5,3263.8,0.55]
[1738261848988,3.06335,3264.4,3263.8,0.55]
[1738261849850,3.83639,3264.6,3263.8,0.55]
[1738261850059,3.06337,3264.4,3263.8,0.55]
[1738261850261,3.06319,3264.6,3263.9,3.0638]
[1738261850467,3.06303,3264.8,3264.0,3.61372]
[1738261850708,3.06296,3264.9,3264.0,3.61372]
[1738261850882,3.06297,3264.8,3264.0,6.67738]
[1738261851213,3.06296,3264.9,3264.2,0.55]
[1738261851368,3.06307,3264.7,3264.2,0.55]
[1738261852507,3.06296,3264.9,3264.2,0.55]
[1738261852709,3.06314,3264.7,3264.2,0.55]
[1738261852910,3.06346,3264.3,3263.8,0.8318]
[1738261853268,3.06328,3264.5,3263.8,0.8318]
[1738261853671,3.0635,3264.3,3263.8,0.8318]
[1738261853869,3.06362,3264.2,3263.8,0.8318]
[1738261854271,3.0635,3264.3,3263.8,0.8318]
[1738261854614,3.06342,3264.4,3263.9,0.55]
[1738261854781,3.06355,3264.2,3263.9,0.55]
[1738261854983,3.06342,3264.4,3263.9,0.55]
[1738261855482,3.06345,3264.3,3263.9,0.55]
[1738261855715,3.06342,3264.4,3263.9,0.55]
[1738261855917,3.06344,3264.3,3263.9,0.55]
[1738261856076,3.06342,3264.4,3263.9,0.55]
[1738261856585,3.06342,3264.4,3263.8,0.8318]
[1738261856982,3.06356,3264.2,3263.8,0.8318]
[1738261857634,3.06344,3264.3,3263.8,0.8318]
[1738261857839,3.06342,3264.4,3263.8,0.8318]
[1738261858395,3.06346,3264.3,3263.8,0.8318]
[1738261858642,3.06376,3264.0,3263.8,0.8318]
[1738261858936,3.06376,3264.0,3263.5,1.3463]
[1738261859292,3.06356,3264.2,3263.5,4.41041]
[1738261859804,3.06356,3264.2,3263.7,0.55]
[1738261860196,0.7961,3264.8,3264.0,3.06372]
[1738261860496,6.12591,3264.9,3264.4,0.7886]
[1738261860689,3.06294,3264.9,3264.4,0.7886]
[1738261860896,3.06317,3264.6,3264.4,0.7886]
[1738261861550,3.06305,3264.8,3264.4,0.7886]
[1738261862241,3.09376018,3264.7,3264.4,0.7886]
[1738261862543,3.06312,3264.7,3264.4,0.7886]
[1738261862842,0.8099,3265.1,3264.4,0.7886]
[1738261863045,3.06284,3265.0,3264.4,0.7886]
[1738261863344,3.06297,3264.8,3264.4,0.7886]
[1738261863642,3.06268,3265.2,3264.5,0.55]
[1738261863838,3.06293,3264.9,3264.5,0.55]
[1738261864742,3.0627,3265.1,3264.5,0.55]
[1738261865146,3.0628,3265.0,3264.5,0.55]
[1738261865649,3.0627,3265.1,3264.5,0.55]
[1738261865803,3.06261,3265.2,3264.5,3.61319]
[1738261866141,3.06261,3265.2,3264.5,0.55]
[1738261866353,3.06256,3265.3,3264.6,3.0631]
[1738261866842,3.06249,3265.4,3264.9,0.55]
[1738261868035,5.9190658,3265.6,3264.9,3.61287]
[1738261868200,3.06204,3265.8,3265.0,0.8279]
[1738261868543,3.06204,3265.8,3265.1,3.61262]
[1738261868749,3.06213,3265.7,3265.1,0.55]
[1738261869250,3.06205,3265.8,3265.1,0.55]
[1738261869432,3.06237,3265.5,3265.1,0.55]
[1738261869754,3.06228,3265.6,3265.1,0.55]
[1738261869959,3.06233,3265.5,3265.1,0.55]
[1738261870521,3.06269,3265.1,3265.0,0.8279]
[1738261870747,3.06305,3264.8,3264.4,0.7782]
[1738261871471,3.06305,3264.8,3264.5,0.55]
[1738261871852,6.12568,3265.0,3264.5,0.55]
[1738261872039,3.06282,3265.0,3264.5,0.55]
[1738261872440,3.06263,3265.2,3264.5,0.55]
[1738261872637,3.06225,3265.6,3264.9,0.55]
[1738261872839,3.06206,3265.8,3265.1,0.55]
[1738261873240,3.06213,3265.7,3265.1,3.61265]
[1738261873727,3.06213,3265.7,3265.1,0.55]
[1738261874235,6.124,3265.9,3265.1,3.61263]
[1738261874559,3.06197,3265.9,3265.3,0.55]
[1738261874765,3.06197,3265.9,3265.3,3.61245]
[1738261875468,3.06178,3266.1,3265.5,0.55]
[1738261875768,3.06186,3266.0,3265.6,0.7742]
[1738261876083,3.06155,3266.4,3265.7,3.61207]
[1738261876828,3.06138,3266.5,3265.9,0.55]
[1738261877027,3.06132,3266.6,3266.0,0.7742]
[1738261877226,3.06141,3266.5,3266.1,0.55]
[1738261877442,3.06132,3266.6,3266.1,0.55]
[1738261877646,3.06148,3266.4,3266.1,0.55]
[1738261877841,3.06114,3266.8,3266.1,0.55]
[1738261878042,3.06125,3266.7,3266.1,0.55]
[1738261878243,3.06091,3267.0,3266.0,3.83601]
[1738261878447,3.06115,3266.8,3266.1,0.55]
[1738261878655,3.06122,3266.7,3266.1,0.55]
[1738261879128,3.06105,3266.9,3266.1,0.55]
[1738261879356,3.06105,3266.9,3266.3,0.55]
[1738261879560,3.06105,3266.9,3266.3,3.61154]
[1738261880155,3.06095,3267.0,3266.5,3.06135]
[1738261880156,3.06092,3267.0,3266.5,3.06135]
[1738261880359,3.06076,3267.2,3266.7,0.8093]
[1738261880574,6.12118,3267.4,3266.8,0.55]
[1738261880890,3.81472,3267.8,3266.8,0.55]
[1738261881060,3.06066,3267.3,3266.8,0.55]
[1738261881267,3.06073,3267.2,3266.8,0.55]
[1738261881663,3.06089,3267.1,3266.8,0.55]
[1738261881901,3.06064,3267.3,3266.8,0.55]
[1738261882055,3.0608,3267.2,3266.8,0.55]
[1738261882257,3.06083,3267.1,3266.8,0.55]
[1738261882494,3.06064,3267.3,3266.8,3.61108]
[1738261882699,3.06064,3267.3,3266.8,4.359244]
[1738261882851,3.06028,3267.7,3267.1,0.55]
[1738261883056,3.05982,3268.2,3267.6,0.55]
[1738261883286,3.06005,3268.0,3267.7,0.7968]
[1738261883457,2.8568158,3268.4,3267.4,1.3468]
[1738261883655,3.06044,3267.5,3267.4,1.3468]
[1738261884401,3.06037,3267.6,3267.4,1.3468]
[1738261884609,3.798,3268.5,3267.4,1.3468]
[1738261884610,3.05998,3268.0,3267.4,1.3468]
[1738261884900,3.05998,3268.0,3267.4,4.40733]
[1738261885102,3.05998,3268.0,3267.4,4.848063]
[1738261885257,3.05982,3268.2,3267.4,4.051263]
[1738261885455,3.0597,3268.3,3267.8,0.7804]
[1738261885704,3.05972,3268.3,3267.9,0.55]
[1738261885997,3.0599,3268.1,3267.9,0.55]
[1738261886299,3.05952,3268.5,3267.9,0.55]
[1738261886460,3.05952,3268.5,3267.9,3.61003]
[1738261886968,3.05952,3268.5,3267.9,4.049073]
[1738261887294,3.05951,3268.5,3268.1,0.55]
[1738261887957,3.05946,3268.6,3268.1,0.55]
[1738261888299,0.1648478,3268.9,3268.3,0.55]
[1738261888482,0.1648478,3268.9,3268.4,0.7646]
[1738261888689,0.1648478,3268.9,3268.4,1.202029]
[1738261888872,3.2240578,3268.9,3268.4,1.202029]
[1738261889257,3.2240578,3268.9,3268.4,4.261609]
[1738261889258,0.1648478,3268.9,3268.4,4.261609]
[1738261889467,0.1648478,3268.9,3268.5,3.60949]
[1738261889706,0.1648478,3268.9,3268.6,0.7641]
[1738261890002,0.1648478,3268.9,3268.6,4.3045619]
[1738261890168,0.1648478,3268.9,3268.8,1.3499]
[1738261891527,0.1648478,3268.9,3268.8,7.43970718]
[1738261891673,0.1648478,3268.9,3268.8,7.40112]
[1738261892202,3.05819,3269.9,3269.3,0.55]
[1738261892409,3.05839,3269.7,3269.5,0.55]
[1738261892574,3.05869,3269.4,3269.2,0.8057]
[1738261893094,3.05869,3269.4,3269.3,0.55]
[1738261893479,3.05869,3269.4,3268.6,3.5405019]
[1738261893480,0.03064018,3269.5,3268.7,0.7643]
[1738261893793,3.05915,3268.9,3268.7,0.7643]
[1738261893994,3.05915,3268.9,3268.8,0.55]
[1738261894362,3.05899,3269.1,3268.8,0.55]
[1738261895601,3.05876,3269.3,3268.8,0.55]
[1738261895806,3.05861,3269.5,3268.8,3.6092]
[1738261896129,3.05829,3269.8,3269.0,0.55]
[1738261896272,2.8568158,3269.9,3268.7,0.7643]
[1738261896273,3.05904,3269.0,3268.7,0.7643]
[1738261896709,3.05893,3269.2,3268.8,0.55]
[1738261896884,3.05868,3269.4,3268.8,0.55]
[1738261897391,3.05889,3269.2,3268.8,0.55]
[1738261897573,3.83809,3269.2,3268.6,0.55]
[1738261897774,3.05889,3269.2,3268.8,0.55]
[1738261898070,0.7792,3269.5,3268.8,0.55]
[1738261898254,2.8568158,3269.3,3268.4,0.7964]
[1738261898460,3.83781,3269.5,3268.6,3.05935]
[1738261898621,3.05881,3269.3,3268.8,0.7964]
[1738261898828,3.05838,3269.7,3269.2,0.55]
[1738261899126,3.05838,3269.7,3269.3,0.7964]
[1738261899127,3.05866,3269.4,3269.3,0.7964]
[1738261899339,3.05844,3269.7,3269.3,0.7964]
[1738261899670,6.11691,3269.7,3269.3,0.7964]
[1738261900910,3.05844,3269.7,3269.4,0.55]
[1738261901240,3.0583,3269.8,3269.4,0.55]
[1738261901608,3.0584,3269.7,3269.4,0.990518]
[1738261901934,3.0584,3269.7,3269.4,0.55]
[1738261902349,3.05855,3269.6,3269.4,0.55]
[1738261902645,5.9147958,3270.2,3269.4,0.55]
[1738261902646,3.05817,3270.0,3269.4,0.55]
[1738261903153,3.05817,3270.0,3269.6,0.55]
[1738261903306,3.05817,3270.0,3269.6,0.910856]
[1738261903507,3.05795,3270.2,3269.6,3.969326]
[1738261904126,3.05802,3270.1,3269.6,3.969326]
[1738261904445,3.05802,3270.1,3269.8,0.55]
[1738261904648,3.0581,3270.0,3269.8,0.55]
[1738261904810,3.05819,3269.9,3269.8,0.55]
[1738261907340,3.0581,3270.0,3269.8,0.55]
[1738261907650,0.8128,3270.7,3269.8,0.55]
[1738261907867,3.05777,3270.4,3269.8,0.55]
[1738261908050,0.8128,3270.7,3269.8,0.55]
[1738261908256,3.05791,3270.3,3269.8,0.988922]
[1738261908866,3.05793,3270.2,3269.8,0.988922]
[1738261909067,3.05801,3270.1,3269.8,0.55]
[1738261909255,3.05791,3270.3,3269.8,0.55]
[1738261909468,3.05794,3270.2,3269.8,0.55]
[1738261909803,3.05792,3270.2,3269.8,0.55]
[1738261911257,3.05803,3270.1,3269.8,0.55]
[1738261912074,6.1161,3270.1,3269.8,0.55]
[1738261912292,3.05803,3270.1,3269.8,0.55]
[1738261912610,3.05797,3270.2,3269.8,0.55]
[1738261913094,3.05797,3270.2,3269.8,0.988919]
[1738261913402,3.0578,3270.4,3269.8,4.047129]
[1738261913581,3.05767,3270.5,3269.8,4.07770692]
[1738261913768,3.05767,3270.5,3270.1,0.55]
[1738261914158,3.05746,3270.7,3270.3,0.55]
[1738261914358,3.05761,3270.6,3270.3,0.55]
[1738261915170,3.05713,3271.1,3270.6,0.55]
[1738261915371,3.05695,3271.3,3270.8,0.55]
[1738261916103,3.05698,3271.2,3270.8,0.55]
[1738261916319,3.05716,3271.1,3270.8,0.55]
[1738261916464,3.05726,3270.9,3270.8,0.55]
[1738261916907,3.05716,3271.1,3270.8,0.55]
[1738261917106,3.05689,3271.3,3270.8,0.993353]
[1738261917293,6.11386,3271.3,3270.8,0.993353]
[1738261917490,3.05689,3271.3,3270.8,0.993353]
[1738261917819,3.05674,3271.5,3270.8,0.993353]
[1738261918021,0.8104,3271.7,3270.8,0.993353]
[1738261918326,3.05698,3271.2,3270.8,0.993353]
[1738261918629,3.05698,3271.2,3270.7,3.8834]
[1738261918630,3.05687,3271.4,3271.0,0.55]
[1738261918925,3.05707,3271.1,3271.0,0.55]
[1738261920280,3.05725,3271.0,3270.7,0.826]
[1738261920642,3.05735,3270.8,3270.7,0.826]
[1738261921122,6.11451,3271.0,3270.8,0.55]
[1738261921341,3.05726,3270.9,3270.8,0.55]
[1738261921626,3.05778,3270.4,3270.0,0.8048]
[1738261921830,3.05757,3270.6,3270.0,3.8048]
[1738261921982,3.05757,3270.6,3270.2,0.55]
[1738261922533,3.0577,3270.5,3270.2,0.55]
[1738261922831,3.05789,3270.3,3269.7,0.8306]
[1738261923125,3.05821,3269.9,3269.3,3.8893]
[1738261923437,3.05841,3269.7,3269.3,0.8306]
[1738261923724,3.05801,3270.1,3269.3,0.8306]
[1738261923931,3.05844,3269.7,3269.3,0.8306]
[1738261924094,3.05865,3269.5,3269.3,0.8306]
[1738261924296,3.05865,3269.5,3269.0,0.8279]
[1738261924632,6.11688,3269.7,3269.2,0.55]
[1738261924926,3.05853,3269.6,3269.2,0.55]
[1738261925128,3.05853,3269.6,3269.1,3.38279]
[1738261925439,3.05868,3269.4,3269.1,0.38279]
[1738261925579,3.05887,3269.2,3268.5,3.05943]
[1738261925778,3.05887,3269.2,3268.5,6.11884]
[1738261926221,3.05887,3269.2,3268.6,0.55]
[1738261926404,3.05868,3269.4,3268.7,3.88186]
[1738261926579,6.11743,3269.4,3268.8,0.388186]
[1738261926781,3.05863,3269.5,3268.9,3.6091]
[1738261927331,3.05799,3270.2,3269.4,0.55]
[1738261927498,3.05801,3270.1,3269.6,0.55]
[1738261927819,3.05783,3270.3,3270.0,0.55]
[1738261927975,3.05793,3270.2,3270.0,0.55]
[1738261928176,3.05811,3270.0,3269.7,0.360848]
[1738261928380,3.05835,3269.8,3269.6,0.7659]
[1738261928579,3.05838,3269.7,3269.6,0.55]
[1738261928781,3.05866,3269.4,3268.9,0.829]
[1738261929038,3.05851,3269.6,3268.9,0.829]
[1738261929209,3.05851,3269.6,3269.0,3.60903]
[1738261929437,6.11665,3269.8,3269.2,0.55]
[1738261929599,0.764,3270.3,3269.4,0.55]
[1738261929600,3.05809,3270.1,3269.4,0.55]
[1738261929786,3.05781,3270.4,3269.6,0.55]
[1738261929980,3.05781,3270.4,3269.8,3.60823]
[1738261930400,3.05782,3270.3,3269.8,0.55]
[1738261931293,3.05782,3270.3,3270.0,0.55]
[1738261932389,3.05782,3270.3,3269.8,0.55]
[1738261932929,3.05773,3270.4,3269.8,3.60821]
[1738261933153,3.05766,3270.5,3269.8,3.60821]
[1738261933362,3.05784,3270.3,3269.8,3.60821]
[1738261933569,3.05766,3270.5,3270.0,0.55]
[1738261933890,3.05766,3270.5,3270.2,0.55]
[1738261935465,3.05749,3270.7,3270.2,0.55]
[1738261935671,3.05755,3270.6,3270.2,0.55]
[1738261935877,0.7732,3271.0,3270.2,0.55]
[1738261935878,3.05771,3270.5,3270.2,0.55]
[1738261936040,3.05782,3270.3,3269.8,0.7857]
[1738261936242,3.05782,3270.3,3269.8,1.470115]
[1738261936822,3.05782,3270.3,3269.9,0.55]
[1738261937443,6.11543,3270.5,3269.9,0.55]
[1738261937626,3.05771,3270.5,3269.9,0.55]
[1738261937839,3.05775,3270.4,3269.9,0.55]
[1738261938042,3.05775,3270.4,3269.9,1.3578395]
[1738261938369,3.05771,3270.5,3269.9,1.3578395]
[1738261939081,3.05782,3270.3,3269.9,1.3578395]
[1738261939275,3.83042,3271.0,3269.9,1.3578395]
[1738261939276,3.05773,3270.4,3269.9,1.3578395]
[1738261939460,3.05773,3270.4,3269.9,4.4160095]
[1738261939652,3.05773,3270.4,3270.1,0.55]
[1738261940576,3.05783,3270.3,3270.1,0.55]
[1738261941177,3.0577,3270.5,3270.1,0.55]
[1738261942064,3.05758,3270.6,3270.1,0.55]
[1738261942265,3.05776,3270.4,3270.1,0.55]
[1738261943259,3.05816,3270.0,3269.5,0.7928]
[1738261943464,3.05822,3269.9,3269.5,0.7928]
[1738261943674,3.05811,3270.0,3269.6,0.55]
[1738261944948,3.05822,3269.9,3269.6,0.55]
[1738261945692,3.05822,3269.9,3269.5,0.7928]
[1738261945901,3.05843,3269.7,3269.2,0.8202]
[1738261946099,3.80936,3270.0,3268.9,0.8202]
[1738261946250,3.05801,3270.1,3269.5,3.87876]
[1738261946448,3.05801,3270.1,3269.6,0.387876]
[1738261946791,3.0582,3269.9,3269.6,0.55]
[1738261946994,3.0582,3269.9,3269.1,3.0589]
[1738261946995,3.05801,3270.1,3269.1,0.7903]
[1738261947164,3.05859,3269.5,3269.1,0.7903]
[1738261947359,3.05857,3269.5,3269.1,0.7903]
[1738261948003,3.05857,3269.5,3269.2,0.55]
[1738261948508,6.11722,3269.5,3269.2,0.55]